Workbook

Sheet ADA DPAC JAN 2023 CAA
A1: DEPARTMENT OF TRANSPORTATION - CALTRANS
A2: DBE Commitment at Award (CAA) on Federally Funded Architectural & Engineering and Minor B Contracts - October 1, 2022 - January 31, 2023
A4: Total Award Amount Year-to-Date (YTD) | C4: Total DBE Commitment Amount YTD | F4: Total Prime Contracts Awarded YTD
A5: 139162452 | C5: =SUM(C7:C18) -> 31336260.27 | F5: =SUM(C109:C121,J109:J117,F109:F121) -> 15
A6: Groups | C6: Commitment Dollars YTD | D6: Firms YTD | E6: Contracts YTD | F6: % of Contracts | G6: % of DBE $ | H6: % of Total $
A7: Hispanic American Male | C7: =SUMIF(D26:D39,"m", C26:C39) -> 4203688.72 | D7: =COUNTIF(D26:D39,"M") -> 10 | E7: =SUMIF(D26:D39,"M",E26:E39) -> 13 | F7: =E7/E20 -> 0.1780821918 | G7: =C7/C5 -> 0.1341477472 | H7: =C7/A5 -> 0.03020706131
A8: Hispanic American Female | C8: =SUMIF(D26:D39,"F", C26:C39) -> 988854.5 | D8: =COUNTIF(D26:D39,"F") -> 3 | E8: =SUMIF(D26:D39,"F",E26:E39) -> 3 | F8: =E8/E20 -> 0.04109589041 | G8: =C8/C5 -> 0.03155623841 | H8: =C8/A5 -> 0.007105756515
A9: African American Male | C9: =SUMIF(D47:D49,"m", C47:C49) -> 964040.25 | D9: =COUNTIF(D47:D49,"M") -> 3 | E9: =SUMIF(D47:D49,"M",E47:E49) -> 4 | F9: =E9/E20 -> 0.05479452055 | G9: =C9/C5 -> 0.03076436823 | H9: =C9/A5 -> 0.006927445127
A10: African American Female | C10: =SUMIF(D47:D49,"F", C47:C49) -> 0 | D10: =COUNTIF(D47:D49,"F") -> 0 | E10: =SUMIF(D47:D49,"F",E47:E49) -> 0 | F10: =E10/E20 -> 0 | G10: =C10/C5 -> 0 | H10: =C10/A5 -> 0
A11: Asian Pacific Male | C11: =SUMIF(D59:D74,"m", C59:C74) -> 7441007.61 | D11: =COUNTIF(D59:D74,"M") -> 10 | E11: =SUMIF(D59:D74,"M",E59:E74) -> 14 | F11: =E11/E20 -> 0.1917808219 | G11: =C11/C5 -> 0.2374567848 | H11: =C11/A5 -> 0.05346993749
A12: Asian Pacific Female | C12: =SUMIF(D59:D74,"F", C59:C74) -> 1972781.44 | D12: =COUNTIF(D59:D74,"F") -> 4 | E12: =SUMIF(D59:D74,"F",E59:E74) -> 7 | F12: =E12/E20 -> 0.09589041096 | G12: =C12/C5 -> 0.06295522896 | H12: =C12/A5 -> 0.01417610434
A13: Subcontinent Asian Male | C13: =SUMIF(D52:D56,"m", C52:C56) -> 7295185 | D13: =COUNTIF(D52:D56,"M") -> 2 | E13: =SUMIF(D52:D56,"M",E52:E56) -> 2 | F13: =E13/E20 -> 0.02739726027 | G13: =C13/C5 -> 0.2328033064 | H13: =C13/A5 -> 0.05242207862
A14: Subcontinent Asian Female | C14: =SUMIF(D52:D56,"F", C52:C56) -> 873600 | D14: =COUNTIF(D52:D56,"F") -> 2 | E14: =SUMIF(D52:D56,"F",E52:E56) -> 2 | F14: =E14/E20 -> 0.02739726027 | G14: =C14/C5 -> 0.02787824688 | H14: =C14/A5 -> 0.006277555385
A15: Native American Male | C15: =SUMIF(D42:D44,"m", C42:C44) -> 0 | D15: =COUNTIF(D42:D44,"M") -> 0 | E15: =SUMIF(D42:D44,"M",E42:E44) -> 0 | F15: =E15/E20 -> 0 | G15: =C15/C5 -> 0 | H15: =C15/A5 -> 0
A16: Native American Female | C16: =SUMIF(D42:D44,"F", C42:C44) -> 0 | D16: =COUNTIF(D42:D44,"F") -> 0 | E16: =SUMIF(D42:D44,"F",E42:E44) -> 0 | F16: =E16/E20 -> 0 | G16: =C16/C5 -> 0 | H16: =C16/A5 -> 0
A17: Non Minority Women | C17: =SUMIF(D81:D104,"F", C81:C104) -> 7597102.75 | D17: =COUNTIF(D81:D104,"F") -> 23 | E17: =SUMIF(D81:D104,"F",E81:E104) -> 28 | F17: =E17/E20 -> 0.3835616438 | G17: =C17/C5 -> 0.2424380792 | H17: =C17/A5 -> 0.05459161319
A18: Non Minority Men | C18: =SUMIF(D77:D78,"M", C77:C78) -> 0 | D18: =COUNTIF(D77:D78,"M") -> 0 | E18: =SUMIF(D77:D78,"M",E77:E78) -> 0 | F18: =E18/E20 -> 0 | G18: =C18/C5 -> 0 | H18: =C18/A5 -> 0
A20: Total | C20: =SUM(C7:C18) -> 31336260.27 | D20: =SUM(D7:D19) -> 57 | E20: =SUM(E7:E19) -> 73
A21: Total Prime Contracts Awarded | C21: =SUM(C109:C121,F109:F121,J109:J117) -> 15
A22: Red Italic = DBE firm as Prime
A23: BOLD = women
A25: Hispanic American | C25: Dollars | D25: M/F | E25: Contract | F25: Contract # | G25: Prime | H25: Prime Name | I25: Districts
A26: ACT CONSULTING ENGINEERS | C26: 94040.25 | D26: M | E26: 1 | F26: =fetchcomment(E26) -> 08A3485 | G26: 1 | H26: =fetchcomment(G26) -> ICF JONES & STOKES | I26: 8
A27: ADVANCED TECHNOLOGY | C27: 150000 | D27: M | E27: 1 | F27: =fetchcomment(E27) -> 07A5331 | G27: 1 | H27: =fetchcomment(G27) -> Geosyntec Consultants, Inc. | I27: 7
A28: ALFRED MARTINEZ ENGINEERING | C28: 146000 | D28: M | E28: 1 | F28: =fetchcomment(E28) -> 59A1208 | G28: 1 | H28: =fetchcomment(G28) -> HDR Construction Control Corporation | I28: 59
A29: ARELLANO ASSOCIATES LLC | C29: 438854.5 | D29: F | E29: 1 | F29: =fetchcomment(E29) -> 08A3485 | G29: 1 | H29: =fetchcomment(G29) -> ICF JONES & STOKES | I29: 8
A30: BARGAS ENVIRONMENT | C30: 350000 | D30: F | E30: 1 | F30: =fetchcomment(E30) -> 03A3447 | G30: 1 | H30: =fetchcomment(G30) -> ICF Jones & Stokes | I30: 3
A31: B & R CONSULTING ENGINEERS | C31: 843600 | D31: M | E31: 1 | F31: =fetchcomment(E31) -> 59A1206 | G31: 1 | H31: =fetchcomment(G31) -> FALCON ENGINEERING SERVICES INC | I31: 59
A32: DUKE CULTURAL RESOURCES | C32: 31346.75 | D32: M | E32: 1 | F32: =fetchcomment(E32) -> 08A3485 | G32: 1 | H32: =fetchcomment(G32) -> ICF JONES & STOKES | I32: 8
A33: FOUNTAINHEAD COUSULTING CORP. | C33: 715000 | D33: M | E33: 1 | F33: =fetchcomment(E33) -> 59A1195 | G33: 1 | H33: =fetchcomment(G33) -> MNS Engineers, Inc. | I33: 59
A34: MARTINI DRILLING CORP | C34: 60000 | D34: M | E34: 1 | F34: =fetchcomment(E34) -> 07A5331 | G34: 1 | H34: =fetchcomment(G34) -> Geosyntec Consultants, Inc. | I34: 7
A35: SIX RIVERS GEOSCIENCES | C35: 200000 | D35: F | E35: 1 | F35: =fetchcomment(E35) -> 04A6470 | G35: 1 | H35: =fetchcomment(G35) -> HDR Construction Control Corporation | I35: 4
A36: SJ CONSTRUCTION MANAGEMENT | C36: 1197701.98 | D36: M | E36: 2 | F36: =fetchcomment(E36) -> 06A2824 59A1208 | G36: 1 | H36: =fetchcomment(G36) -> Ghiradelli & Associates, Inc. HDR Construction Control Corporation | I36: 6, 59
A37: UNIFIED TRAFFIC SYSTEMS. | C37: 60000 | D37: M | E37: 1 | F37: =fetchcomment(E37) -> 07A5331 | G37: 1 | H37: =fetchcomment(G37) -> Geosyntec Consultants, Inc. | I37: 7
A38: UNICO ENGINEERING CONSULTING | C38: 905999.74 | D38: M | E38: 3 | F38: =fetchcomment(E38) -> 06A2767 06A2779 59A1208 | G38: 2 | H38: =fetchcomment(G38) -> Geocon Consultants, Inc. HDR Construction Control Corporation | I38: 6, 59
F39: =fetchcomment(E39) ->  | H39: =fetchcomment(G39) -> 
A41: Native American | C41: Dollars | D41: M/F | E41: Contract | F41: Contract # | G41: Prime | H41: Prime Name | I41: Districts
F42: =fetchcomment(E42) ->  | H42: =fetchcomment(G42) -> 
F43: =fetchcomment(E43) ->  | H43: =fetchcomment(G43) -> 
F44: =fetchcomment(E44) ->  | H44: =fetchcomment(G44) -> 
A46: African American | C46: Dollars | D46: M/F | E46: Contract | F46: Contract # | G46: Prime | H46: Prime Name | I46: Districts
A47: ACTIVEWAYZ ENGINEERING, INC. | C47: 210000 | D47: M | E47: 1 | F47: =fetchcomment(E47) -> 04A6470 | G47: 1 | H47: =fetchcomment(G47) -> HDR Construction Control Corporation | I47: 4
A48: BIOMAAS | C48: 510000 | D48: M | E48: 1 | F48: =fetchcomment(E48) -> 04A6493 | G48: 1 | H48: =fetchcomment(G48) -> AECOM Technical Services | I48: 4
A49: ENVIRONMENTAL REVIEW PARTNERS | C49: 244040.25 | D49: M | E49: 2 | F49: =fetchcomment(E49) -> 03A3447 08A3485 | G49: 1 | H49: =fetchcomment(G49) -> ICF JONES & STOKES | I49: 3, 8
A51: Sub Cont Asian | C51: Dollars | D51: M/F | E51: Contract | F51: Contract # | G51: Prime | H51: Prime Name | I51: Districts
A52: CHAUDHARY & ASSOCIATES | C52: 6732785 | D52: M | E52: 1 | F52: =fetchcomment(E52) -> 06A2812 | G52: 1 | H52: =fetchcomment(G52) -> CHAUDHARY & ASSOCIATES | I52: 6
A53: KZAB ENGINEERS INC | C53: 562400 | D53: M | E53: 1 | F53: =fetchcomment(E53) -> 59A1206 | G53: 1 | H53: =fetchcomment(G53) -> FALCON ENGINEERING SERVICES INC | I53: 59
A54: POLYTECHNIQUE ENVIRONMENTAL | C54: 30000 | D54: F | E54: 1 | F54: =fetchcomment(E54) -> 07A5331 | G54: 1 | H54: =fetchcomment(G54) -> Geosyntec Consultants, Inc. | I54: 7
A55: SKYLINE CONSULTANTS | C55: 843600 | D55: F | E55: 1 | F55: =fetchcomment(E55) -> 59A1206 | G55: 1 | H55: =fetchcomment(G55) -> FALCON ENGINEERING SERVICES INC | I55: 59
F56: =fetchcomment(E56) ->  | H56: =fetchcomment(G56) -> 
A58: Asian Pacific | C58: Dollars | D58: M/F | E58: Contract | F58: Contract # | G58: Prime | H58: Prime Name | I58: Districts
A59: ALIQUOT ASSOCIATES | C59: 250000 | D59: M | E59: 1 | F59: =fetchcomment(E59) -> 04A6470 | G59: 1 | H59: =fetchcomment(G59) -> HDR Construction Control Corporation | I59: 4
A60: ANALYZER INTERNATIONAL, INC. | C60: 876000 | D60: M | E60: 1 | F60: =fetchcomment(E60) -> 59A1208 | G60: 1 | H60: =fetchcomment(G60) -> HDR Construction Control Corporation | I60: 59
A61: ASSET LABORATORIES | C61: 779993.64 | D61: F | E61: 3 | F61: =fetchcomment(E61) -> 06A2767 06A2779 07A5331 | G61: 2 | H61: =fetchcomment(G61) -> Geocon Consultants, Inc. Geosyntec Consultants, Inc. | I61: 6, 7
A62: AXIOM ENVIRONMENTAL | C62: 934788.06 | D62: M | E62: 1 | F62: =fetchcomment(E62) -> 06A2732 | G62: 1 | H62: =fetchcomment(G62) -> BLACKBURN CONSULTING | I62: 6
A63: COASTAL ENGINEERING INC | C63: 1181515.2 | D63: M | E63: 1 | F63: =fetchcomment(E63) -> 08A3516 | G63: 1 | H63: =fetchcomment(G63) -> EXP U.S. SERVICES INC | I63: 8
A64: DICKERSON CONSULTING | C64: 146000 | D64: M | E64: 1 | F64: =fetchcomment(E64) -> 59A1208 | G64: 1 | H64: =fetchcomment(G64) -> HDR Construction Control Corporation | I64: 59
A65: INTERPHASE ENVIRONMENTAL, INC. | C65: 14999.74 | D65: F | E65: 1 | F65: =fetchcomment(E65) -> 06A2767 | G65: 1 | H65: =fetchcomment(G65) -> Geocon Consultants, Inc. | I65: 6
A66: J MYRAH ENVIRONMENTAL, INC. | B66: 467701.98 | C66: 100000 | D66: F | E66: 1 | F66: =fetchcomment(E66) -> 03A3447 | G66: 1 | H66: =fetchcomment(G66) -> ICF Jones & Stokes | I66: 3
A67: KCM ENGINEERING, INC. | C67: 1740301.98 | D67: M | E67: 3 | F67: =fetchcomment(E67) -> 06A2824 59A1195 59A1206 | G67: 3 | H67: =fetchcomment(G67) -> Ghiradelli & Associates, Inc. MNS Engineers, Inc. FALCON ENGINEERING SERVICES INC | I67: 6, 59
A68: MOZAMO ENGINEERING, INC. | C68: 1077788.06 | D68: F | E68: 2 | F68: =fetchcomment(E68) -> 59A1195 06A2732 | G68: 2 | H68: =fetchcomment(G68) -> MNS Engineers, Inc. BLACKBURN CONSULTING | I68: 6,59
A69: PARK ENGINEEERING, INC. | C69: 1039701.98 | D69: M | E69: 2 | F69: =fetchcomment(E69) -> 06A2824 59A1195 | G69: 2 | H69: =fetchcomment(G69) -> Ghiradelli & Associates, Inc. MNS Engineers, Inc. | I69: 6, 59
A70: PENECORE DRILLING | C70: 179998.41 | D70: M | E70: 2 | F70: =fetchcomment(E70) -> 06A2767 06A2779 | G70: 1 | H70: =fetchcomment(G70) -> Geocon Consultants, Inc. | I70: 6
A71: TRANSMAT | C71: 625000 | D71: M | E71: 1 | F71: =fetchcomment(E71) -> 07A5417 | G71: 1 | H71: =fetchcomment(G71) -> Kleinfelder | I71: 7
A72: TRICERTUS, LLC | C72: 467701.98 | D72: M | E72: 1 | F72: =fetchcomment(E72) -> 06A2824 | G72: 1 | H72: =fetchcomment(G72) -> Ghiradelli & Associates, Inc. | I72: 6
F73: =fetchcomment(E73) ->  | H73: =fetchcomment(G73) -> 
F74: =fetchcomment(E74) ->  | H74: =fetchcomment(G74) -> 
A76: Other | C76: Dollars | D76: M/F | E76: Contract | F76: Contract # | G76: Prime | H76: Prime Name | I76: Districts
F77: =fetchcomment(E77) ->  | H77: =fetchcomment(G77) -> 
F78: =fetchcomment(E78) ->  | H78: =fetchcomment(G78) -> 
A80: Non Minority Women | C80: Dollars | D80: M/F | E80: Contract | F80: Contract # | G80: Prime | H80: Prime Name | I80: Districts
A81: A I M CONSULTING | C81: 200000 | D81: F | E81: 1 | F81: =fetchcomment(E81) -> 03A3447 | G81: 1 | H81: =fetchcomment(G81) -> ICF Jones & Stokes | I81: 3
A82: ALTA ARCHAEOLOGICAL CONSULTING | C82: 170000 | D82: F | E82: 1 | F82: =fetchcomment(E82) -> 04A6493 | G82: 1 | H82: =fetchcomment(G82) -> AECOM Technical Services | I82: 4
A83: ALBAT | C83: 467701.98 | D83: F | E83: 1 | F83: =fetchcomment(E83) -> 06A2824 | G83: 1 | H83: =fetchcomment(G83) -> Ghiradelli & Associates, Inc. | I83: 6
A84: APPL INC | C84: 209998.94 | D84: F | E84: 3 | F84: =fetchcomment(E84) -> 06A2767 06A2779 07A5331 | G84: 2 | H84: =fetchcomment(G84) -> Geocon Consultants, Inc. Geosyntec Consultants, Inc. | I84: 6, 7
A85: AREA WEST ENVIRONMENTAL | C85: 400000 | D85: F | E85: 1 | F85: =fetchcomment(E85) -> 03A3447 | G85: 1 | H85: =fetchcomment(G85) -> ICF Jones & Stokes | I85: 3
A86: ARCHAEOPALEO RESOURCES | C86: 30000 | D86: F | E86: 1 | F86: =fetchcomment(E86) -> 07A5331 | G86: 1 | H86: =fetchcomment(G86) -> Geosyntec Consultants, Inc. | I86: 7
A87: AZAD ENGINEERING PC | C87: 200000 | D87: F | E87: 1 | F87: =fetchcomment(E87) -> 04A6470 | G87: 1 | H87: =fetchcomment(G87) -> HDR Construction Control Corporation | I87: 4
A88: CIVIL WORKS ENGINEERS | C88: 31346.75 | D88: F | E88: 1 | F88: =fetchcomment(E88) -> 08A3485 | G88: 1 | H88: =fetchcomment(G88) -> ICF JONES & STOKES | I88: 8
A89: CONVEY, INC. | C89: 297500 | D89: F | E89: 1 | F89: =fetchcomment(E89) -> 04A6493 | G89: 1 | H89: =fetchcomment(G89) -> AECOM Technical Services | I89: 4
A90: DAVID J. POWERS & ASSOCIATES | C90: 255000 | D90: F | E90: 1 | F90: =fetchcomment(E90) -> 04A6493 | G90: 1 | H90: =fetchcomment(G90) -> AECOM Technical Services | I90: 4
A91: DESTINATION ENTERPRISES | C91: 467701.98 | D91: F | E91: 1 | F91: =fetchcomment(E91) -> 06A2824 | G91: 1 | H91: =fetchcomment(G91) -> Ghiradelli & Associates, Inc. | I91: 6
A92: EGRET, INC. | C92: 100000 | D92: F | E92: 1 | F92: =fetchcomment(E92) -> 03A3447 | G92: 1 | H92: =fetchcomment(G92) -> ICF Jones & Stokes | I92: 3
A93: GALLAWAY ENTERPRISES | C93: 300000 | D93: F | E93: 1 | F93: =fetchcomment(E93) -> 03A3447 | G93: 1 | H93: =fetchcomment(G93) -> ICF Jones & Stokes | I93: 3
A94: INTEGRATED ECOSYSTEMS CONSULTING | C94: 42500 | D94: F | E94: 1 | F94: =fetchcomment(E94) -> 04A6493 | G94: 1 | H94: =fetchcomment(G94) -> AECOM Technical Services | I94: 4
A95: KEISH ENVIRONMENTAL | C95: 85000 | D95: F | E95: 1 | F95: =fetchcomment(E95) -> 04A6493 | G95: 1 | H95: =fetchcomment(G95) -> AECOM Technical Services | I95: 4
A96: MATERIAL CULTURE CONSULTING | C96: 300000 | D96: F | E96: 1 | F96: =fetchcomment(E96) -> 03A3447 | G96: 1 | H96: =fetchcomment(G96) -> ICF Jones & Stokes | I96: 3
A97: MONUMENT ROW | C97: 62693.5 | D97: F | E97: 1 | F97: =fetchcomment(E97) -> 08A3485 | G97: 1 | H97: =fetchcomment(G97) -> ICF JONES & STOKES | I97: 8
A98: NATURAL RESOURCES MANAGEMENT CORPORATION | C98: 250000 | D98: F | E98: 1 | F98: =fetchcomment(E98) -> 08A3485 | G98: 1 | H98: =fetchcomment(G98) -> ICF JONES & STOKES | I98: 8
A99: RUBICON ENGINEERING | C99: 60000 | D99: F | E99: 1 | F99: =fetchcomment(E99) -> 07A5331 | G99: 1 | H99: =fetchcomment(G99) -> Geosyntec Consultants, Inc. | I99: 7
A100: SEQUOIA ECOLOGICAL CONSULTING | C100: 550000 | D100: F | E100: 2 | F100: =fetchcomment(E100) -> 03A3447 04A6470 | G100: 2 | H100: =fetchcomment(G100) -> HDR Construction Control Corporation ICF Jones & Stokes | I100: 3, 4
A101: SWAIM BIOLOGICAL CONSULTING | C101: 510000 | D101: F | E101: 1 | F101: =fetchcomment(E101) -> 04A6493 | G101: 1 | H101: =fetchcomment(G101) -> AECOM Technical Services | I101: 4
A102: WATEARTH, INC. | C102: 250000 | D102: F | E102: 1 | F102: =fetchcomment(E102) -> 03A3447 | G102: 1 | H102: =fetchcomment(G102) -> ICF Jones & Stokes | I102: 3
A103: Z & K CONSULTANTS, INC. | C103: 2357659.6 | D103: F | E103: 3 | F103: =fetchcomment(E103) -> 59A1195 08A3516 59A1206 | G103: 3 | H103: =fetchcomment(G103) -> MNS Engineers, Inc. EXP U.S. SERVICES INC FALCON ENGINEERING SERVICES INC | I103: 8, 59
A108: Prime Name | C108: # of Contracts | D108: Contract # | E108: Prime Name | F108: # of Contracts | G108: Contract # | H108: Prime Name | I108: # of Contracts | J108: Contract #
A109: AECOM TECHNICAL SERVICES | C109: 1 | D109: =fetchcomment(C109) -> 04A6493
A110: BLACKBURN CONSULTING | C110: 1 | D110: =fetchcomment(C110) -> 06A2732
A111: CHAUDHARY & ASSOCIATES | C111: 1 | D111: =fetchcomment(C111) -> 06A2812
A112: EXP U.S. SERVICES INC | C112: 1 | D112: =fetchcomment(C112) -> 08A3516
A113: FALCON ENGINEERING SERVICES INC | C113: 1 | D113: =fetchcomment(C113) -> 59A1206
A114: GEOCON CONSULTANTS, INC. | C114: 2 | D114: =fetchcomment(C114) -> 06A2767 06A2779
A115: GEOSYNTEC CONSULTANTS, INC. | C115: 1 | D115: =fetchcomment(C115) -> 07A5331
A116: GHIRARDELLI & ASSOCIATES | C116: 1 | D116: =fetchcomment(C116) -> 06A2824
A117: HDR CONSTRUCTION CONTROL CORPORATION | C117: 2 | D117: =fetchcomment(C117) -> 06A2767 06A2779
A118: ICF JONES & STOKES | C118: 2 | D118: =fetchcomment(C118) -> 03A3447 08A3485
A119: KLIENFELDER | C119: 1 | D119: =fetchcomment(C119) -> 07A5417
A120: MNS ENGINEERS, INC. | C120: 1 | D120: =fetchcomment(C120) -> 59A1195
A123: To see names of prime contractors/contract numbers, place your cursor on comment tab (red triangle).
A124: Caltrans DBE Reports: http://www.dot.ca.gov/hq/bep/reports.htm
